[Event "Titled Tuesday Blitz November 08 Late 2022"]
[White "Melkumyan, Hrant"]
[Black "Kleiman, Jake"]
[WhiteFideId "13302485"]
[BlackFideId "2020041"]
[WhiteElo "2604"]
[BlackElo "2511"]
[Result "1-0"]
[Round "01"]
[TimeControl "180+1"]
[Date "2022.11.08"]
[WhiteClock "0:00:10"]
[BlackClock "0:00:08"]

1. e4 {[%clk 0:02:58]}  e5 {[%clk 0:02:57]} 2. Nf3 {[%clk 0:02:57]}  Nc6 {[%clk 0:02:58]} 3. Nc3 {[%clk 0:02:56]}  Nf6 {[%clk 0:02:58]} 4. d4 {[%clk 0:02:56]}  exd4 {[%clk 0:02:58]} 5. Nxd4 {[%clk 0:02:57]}  Bb4 {[%clk 0:02:59]} 6. Nxc6 {[%clk 0:02:58]}  bxc6 {[%clk 0:02:59]} 7. Bd3 {[%clk 0:02:58]}  d5 {[%clk 0:02:59]} 8. exd5 {[%clk 0:02:58]}  O-O {[%clk 0:03:00]} 9. O-O {[%clk 0:02:58]}  cxd5 {[%clk 0:03:00]} 10. h3 {[%clk 0:02:57]}  h6 {[%clk 0:03:00]} 11. Qf3 {[%clk 0:02:57]}  c6 {[%clk 0:03:00]} 12. Bf4 {[%clk 0:02:57]}  Bd6 {[%clk 0:03:00]} 13. Rad1 {[%clk 0:02:57]}  Rb8 {[%clk 0:03:00]} 14. b3 {[%clk 0:02:56]}  Rb4 {[%clk 0:03:00]} 15. Ne2 {[%clk 0:02:57]}  Re8 {[%clk 0:03:00]} 16. c4 {[%clk 0:02:52]}  a5 {[%clk 0:02:59]} 17. Nd4 {[%clk 0:02:40]}  Rb6 {[%clk 0:02:47]} 18. Bxd6 {[%clk 0:02:28]}  Qxd6 {[%clk 0:02:47]} 19. Rfe1 {[%clk 0:02:29]}  Rxe1+ {[%clk 0:02:28]} 20. Rxe1 {[%clk 0:02:30]}  Rb8 {[%clk 0:02:24]} 21. cxd5 {[%clk 0:01:59]}  cxd5 {[%clk 0:02:20]} 22. Bf5 {[%clk 0:01:55]}  Bb7 {[%clk 0:01:49]} 23. Qc3 {[%clk 0:01:45]}  Qb4 {[%clk 0:01:41]} 24. Qxb4 {[%clk 0:01:45]}  axb4 {[%clk 0:01:42]} 25. Re7 {[%clk 0:01:46]}  Kf8 {[%clk 0:01:04]} 26. Rc7 {[%clk 0:01:44]}  Ne8 {[%clk 0:01:01]} 27. Rd7 {[%clk 0:01:43]}  Nf6 {[%clk 0:00:40]} 28. Rd6 {[%clk 0:01:42]}  Ba8 {[%clk 0:00:30]} 29. Ra6 {[%clk 0:01:38]}  Ke7 {[%clk 0:00:25]} 30. Bd3 {[%clk 0:01:34]}  Ne8 {[%clk 0:00:20]} 31. Nf5+ {[%clk 0:01:22]}  Kf8 {[%clk 0:00:20]} 32. Ra7 {[%clk 0:01:19]}  Bc6 {[%clk 0:00:19]} 33. Nd4 {[%clk 0:01:16]}  Rc8 {[%clk 0:00:15]} 34. Ba6 {[%clk 0:01:09]}  Rc7 {[%clk 0:00:15]} 35. Rxc7 {[%clk 0:00:44]}  Nxc7 {[%clk 0:00:15]} 36. Bd3 {[%clk 0:00:44]}  Bd7 {[%clk 0:00:15]} 37. Nc2 {[%clk 0:00:44]}  Bb5 {[%clk 0:00:15]} 38. Nxb4 {[%clk 0:00:44]}  Bxd3 {[%clk 0:00:15]} 39. Nxd3 {[%clk 0:00:45]}  Ke7 {[%clk 0:00:15]} 40. f4 {[%clk 0:00:44]}  Kd6 {[%clk 0:00:16]} 41. Kf2 {[%clk 0:00:45]}  d4 {[%clk 0:00:17]} 42. Kf3 {[%clk 0:00:38]}  f5 {[%clk 0:00:17]} 43. g4 {[%clk 0:00:38]}  g6 {[%clk 0:00:16]} 44. Ne5 {[%clk 0:00:39]}  fxg4+ {[%clk 0:00:16]} 45. hxg4 {[%clk 0:00:38]}  g5 {[%clk 0:00:17]} 46. Nf7+ {[%clk 0:00:37]}  Kd5 {[%clk 0:00:17]} 47. Nxh6 {[%clk 0:00:38]}  gxf4 {[%clk 0:00:17]} 48. Kxf4 {[%clk 0:00:38]}  Ne6+ {[%clk 0:00:17]} 49. Kf3 {[%clk 0:00:37]}  Ng5+ {[%clk 0:00:16]} 50. Kf4 {[%clk 0:00:33]}  Ne6+ {[%clk 0:00:16]} 51. Kf3 {[%clk 0:00:27]}  Ng5+ {[%clk 0:00:15]} 52. Kf2 {[%clk 0:00:28]}  Ke4 {[%clk 0:00:15]} 53. Nf5 {[%clk 0:00:27]}  d3 {[%clk 0:00:15]} 54. Ke1 {[%clk 0:00:18]}  Nf3+ {[%clk 0:00:15]} 55. Kd1 {[%clk 0:00:18]}  Ne5 {[%clk 0:00:15]} 56. Ng3+ {[%clk 0:00:16]}  Kf3 {[%clk 0:00:15]} 57. Nf1 {[%clk 0:00:16]}  Nxg4 {[%clk 0:00:15]} 58. Kd2 {[%clk 0:00:12]}  Ne5 {[%clk 0:00:15]} 59. a4 {[%clk 0:00:10]}  Ke4 {[%clk 0:00:16]} 60. Ng3+ {[%clk 0:00:09]}  Kd4 {[%clk 0:00:15]} 61. Nf5+ {[%clk 0:00:09]}  Kc5 {[%clk 0:00:14]} 62. Kc3 {[%clk 0:00:09]}  Kd5 {[%clk 0:00:13]} 63. Ne3+ {[%clk 0:00:09]}  Ke4 {[%clk 0:00:13]} 64. Nc4 {[%clk 0:00:09]}  Nc6 {[%clk 0:00:13]} 65. a5 {[%clk 0:00:09]}  Nd4 {[%clk 0:00:10]} 66. a6 {[%clk 0:00:08]}  Nb5+ {[%clk 0:00:10]} 67. Kb4 {[%clk 0:00:09]}  Na7 {[%clk 0:00:10]} 68. Kc5 {[%clk 0:00:09]}  Kf3 {[%clk 0:00:09]} 69. b4 {[%clk 0:00:10]}  Ke2 {[%clk 0:00:09]} 70. b5 {[%clk 0:00:10]}  Nc8 {[%clk 0:00:08]} 71. b6 {[%clk 0:00:10]} 1-0


[Site "https://www.chess.com"]

[Event "Titled Tuesday Blitz November 08 Late 2022"]
[White "Moskvin, Anatoly"]
[Black "Goltsev, Dmitry"]
[WhiteFideId "24199990"]
[BlackFideId "24176710"]
[WhiteElo "2079"]
[BlackElo "2289"]
[Result "1-0"]
[Round "01"]
[TimeControl "180+1"]
[Date "2022.11.09"]
[WhiteClock "0:00:45"]
[BlackClock "0:00:36"]

1. e4 {[%clk 0:02:59]}  e6 {[%clk 0:02:57]} 2. Nf3 {[%clk 0:02:59]}  d5 {[%clk 0:02:58]} 3. e5 {[%clk 0:03:00]}  Ne7 {[%clk 0:02:58]} 4. h4 {[%clk 0:02:59]}  c5 {[%clk 0:02:59]} 5. b4 {[%clk 0:02:59]}  cxb4 {[%clk 0:02:58]} 6. a3 {[%clk 0:03:00]}  Nf5 {[%clk 0:02:56]} 7. g4 {[%clk 0:02:59]}  Nh6 {[%clk 0:02:52]} 8. Ng5 {[%clk 0:02:53]}  Nc6 {[%clk 0:02:43]} 9. d4 {[%clk 0:02:53]}  bxa3 {[%clk 0:02:38]} 10. c3 {[%clk 0:02:53]}  a6 {[%clk 0:02:32]} 11. Nxa3 {[%clk 0:02:48]}  Bd7 {[%clk 0:02:31]} 12. Bd3 {[%clk 0:02:34]}  Be7 {[%clk 0:02:27]} 13. Nxh7 {[%clk 0:02:21]}  b5 {[%clk 0:02:14]} 14. Nc2 {[%clk 0:02:18]}  Na5 {[%clk 0:02:11]} 15. Bxh6 {[%clk 0:01:20]}  gxh6 {[%clk 0:02:11]} 16. Nf6+ {[%clk 0:01:21]}  Bxf6 {[%clk 0:02:10]} 17. exf6 {[%clk 0:01:21]}  Rc8 {[%clk 0:02:09]} 18. Ra3 {[%clk 0:01:16]}  Nc4 {[%clk 0:02:00]} 19. Bxc4 {[%clk 0:01:15]}  Rxc4 {[%clk 0:02:01]} 20. Qf3 {[%clk 0:01:14]}  a5 {[%clk 0:01:58]} 21. Ne3 {[%clk 0:01:07]}  Rc8 {[%clk 0:01:58]} 22. g5 {[%clk 0:01:06]}  hxg5 {[%clk 0:01:58]} 23. hxg5 {[%clk 0:01:06]}  Rxh1+ {[%clk 0:01:55]} 24. Qxh1 {[%clk 0:01:06]}  Bc6 {[%clk 0:01:55]} 25. Qh7 {[%clk 0:00:58]}  Qd6 {[%clk 0:01:13]} 26. Rxa5 {[%clk 0:00:58]}  Ra8 {[%clk 0:01:03]} 27. Rxa8+ {[%clk 0:00:52]}  Bxa8 {[%clk 0:01:04]} 28. g6 {[%clk 0:00:51]}  fxg6 {[%clk 0:00:59]} 29. f7+ {[%clk 0:00:50]}  Ke7 {[%clk 0:00:50]} 30. Qg7 {[%clk 0:00:50]}  Kd7 {[%clk 0:00:40]} 31. f8=Q+ {[%clk 0:00:49]}  Kc6 {[%clk 0:00:40]} 32. Qxd6+ {[%clk 0:00:49]}  Kxd6 {[%clk 0:00:41]} 33. Qe5+ {[%clk 0:00:49]}  Kd7 {[%clk 0:00:42]} 34. Ng4 {[%clk 0:00:50]}  Bc6 {[%clk 0:00:42]} 35. Qg7+ {[%clk 0:00:49]}  Kd6 {[%clk 0:00:40]} 36. Ne5 {[%clk 0:00:50]}  g5 {[%clk 0:00:39]} 37. Qf8+ {[%clk 0:00:46]}  Kc7 {[%clk 0:00:40]} 38. Qe7+ {[%clk 0:00:47]}  Kb6 {[%clk 0:00:40]} 39. Qd6 {[%clk 0:00:47]}  g4 {[%clk 0:00:40]} 40. Qxc6+ {[%clk 0:00:47]}  Ka5 {[%clk 0:00:40]} 41. Qc5 {[%clk 0:00:45]}  g3 {[%clk 0:00:38]} 42. Nc6+ {[%clk 0:00:45]}  Ka6 {[%clk 0:00:36]} 43. Qa7# {[%clk 0:00:45]} 1-0


[Site "https://www.chess.com"]

[Event "Titled Tuesday Blitz November 08 Late 2022"]
[White "Nakamura, Hikaru"]
[Black "Hnydiuk, Aleksander"]
[WhiteFideId "2016192"]
[BlackFideId "1109057"]
[WhiteElo "2909"]
[BlackElo "2374"]
[Result "1-0"]
[Round "01"]
[TimeControl "180+1"]
[Date "2022.11.08"]
[WhiteClock "0:01:01"]
[BlackClock "0:00:02"]

1. Nf3 {[%clk 0:03:00]}  Nf6 {[%clk 0:02:57]} 2. g3 {[%clk 0:02:59]}  d5 {[%clk 0:02:52]} 3. Bg2 {[%clk 0:02:58]}  Nbd7 {[%clk 0:02:52]} 4. d4 {[%clk 0:02:54]}  b5 {[%clk 0:02:50]} 5. Ne5 {[%clk 0:02:47]}  Bb7 {[%clk 0:02:46]} 6. O-O {[%clk 0:02:45]}  e6 {[%clk 0:02:46]} 7. a4 {[%clk 0:02:42]}  b4 {[%clk 0:02:45]} 8. a5 {[%clk 0:02:41]}  a6 {[%clk 0:02:37]} 9. Nd3 {[%clk 0:02:39]}  c5 {[%clk 0:02:22]} 10. dxc5 {[%clk 0:02:38]}  Bxc5 {[%clk 0:02:23]} 11. Bd2 {[%clk 0:02:28]}  b3 {[%clk 0:02:06]} 12. Nxc5 {[%clk 0:02:24]}  Nxc5 {[%clk 0:02:04]} 13. cxb3 {[%clk 0:02:24]}  O-O {[%clk 0:01:57]} 14. b4 {[%clk 0:02:24]}  Nce4 {[%clk 0:01:56]} 15. Be3 {[%clk 0:02:24]}  Rc8 {[%clk 0:01:52]} 16. Nd2 {[%clk 0:02:19]}  Nxd2 {[%clk 0:01:45]} 17. Qxd2 {[%clk 0:02:20]}  Bc6 {[%clk 0:01:38]} 18. Rfc1 {[%clk 0:02:16]}  Bb5 {[%clk 0:01:35]} 19. Bd4 {[%clk 0:02:11]}  Ne4 {[%clk 0:01:28]} 20. Qe3 {[%clk 0:02:09]}  Qd7 {[%clk 0:01:24]} 21. Bxe4 {[%clk 0:02:05]}  dxe4 {[%clk 0:01:24]} 22. Qxe4 {[%clk 0:02:05]}  Rxc1+ {[%clk 0:01:18]} 23. Rxc1 {[%clk 0:02:04]}  Rc8 {[%clk 0:01:18]} 24. Bc3 {[%clk 0:01:50]}  f6 {[%clk 0:01:00]} 25. f3 {[%clk 0:01:46]}  Qd5 {[%clk 0:00:56]} 26. Qxd5 {[%clk 0:01:35]}  exd5 {[%clk 0:00:57]} 27. e3 {[%clk 0:01:33]}  Kf7 {[%clk 0:00:56]} 28. Kf2 {[%clk 0:01:31]}  Ke6 {[%clk 0:00:56]} 29. Rd1 {[%clk 0:01:31]}  Bc4 {[%clk 0:00:49]} 30. g4 {[%clk 0:01:31]}  h6 {[%clk 0:00:48]} 31. h4 {[%clk 0:01:31]}  Bb5 {[%clk 0:00:46]} 32. Kg3 {[%clk 0:01:29]}  Bc4 {[%clk 0:00:35]} 33. Rd4 {[%clk 0:01:28]}  Bb5 {[%clk 0:00:32]} 34. Rd2 {[%clk 0:01:17]}  Bc4 {[%clk 0:00:30]} 35. Kf4 {[%clk 0:01:14]}  Bb5 {[%clk 0:00:30]} 36. h5 {[%clk 0:01:12]}  Bc4 {[%clk 0:00:29]} 37. Kg3 {[%clk 0:01:13]}  Bb5 {[%clk 0:00:29]} 38. Rd1 {[%clk 0:01:11]}  Bc4 {[%clk 0:00:28]} 39. Re1 {[%clk 0:01:12]}  Bb5 {[%clk 0:00:28]} 40. e4 {[%clk 0:01:12]}  dxe4 {[%clk 0:00:25]} 41. Rxe4+ {[%clk 0:01:13]}  Kf7 {[%clk 0:00:25]} 42. Rd4 {[%clk 0:01:14]}  Rc7 {[%clk 0:00:23]} 43. Rd6 {[%clk 0:01:13]}  Rd7 {[%clk 0:00:22]} 44. Rb6 {[%clk 0:01:13]}  Bd3 {[%clk 0:00:20]} 45. Kf2 {[%clk 0:01:09]}  Bc4 {[%clk 0:00:19]} 46. Ke3 {[%clk 0:01:08]}  Bf1 {[%clk 0:00:19]} 47. f4 {[%clk 0:01:07]}  Bc4 {[%clk 0:00:17]} 48. g5 {[%clk 0:01:05]}  fxg5 {[%clk 0:00:14]} 49. fxg5 {[%clk 0:01:06]}  hxg5 {[%clk 0:00:14]} 50. Rg6 {[%clk 0:01:07]}  Kf8 {[%clk 0:00:13]} 51. Rxg5 {[%clk 0:01:06]}  Bb5 {[%clk 0:00:06]} 52. Bd4 {[%clk 0:01:04]}  Bc4 {[%clk 0:00:05]} 53. Rc5 {[%clk 0:01:04]}  Bb5 {[%clk 0:00:04]} 54. Rxb5 {[%clk 0:01:01]}  axb5 {[%clk 0:00:05]} 55. a6 {[%clk 0:01:02]}  Kf7 {[%clk 0:00:03]} 56. a7 {[%clk 0:01:02]}  Rd8 {[%clk 0:00:02]} 57. Be5 {[%clk 0:01:01]}  Ra8 {[%clk 0:00:01]} 58. Bb8 {[%clk 0:01:01]}  Ke6 {[%clk 0:00:02]} 59. Ke4 {[%clk 0:01:01]}  Kd7 {[%clk 0:00:01]} 60. Kf5 {[%clk 0:01:00]}  Kc6 {[%clk 0:00:01]} 61. Kg6 {[%clk 0:01:01]}  Kb7 {[%clk 0:00:02]} 62. Kxg7 {[%clk 0:01:01]} 1-0


[Site "https://www.chess.com"]

[Event "Titled Tuesday Blitz November 08 Late 2022"]
[White "Oglaza, Oskar"]
[Black "Talibov, Shiroghlan"]
[WhiteFideId "1194402"]
[BlackFideId "13429078"]
[WhiteElo "2204"]
[BlackElo "2261"]
[Result "1-0"]
[Round "01"]
[TimeControl "180+1"]
[Date "2022.11.09"]
[WhiteClock "0:00:07"]
[BlackClock "0:00:02"]

1. e4 {[%clk 0:02:58]}  c5 {[%clk 0:02:52]} 2. Nf3 {[%clk 0:02:57]}  d6 {[%clk 0:02:42]} 3. d4 {[%clk 0:02:58]}  cxd4 {[%clk 0:02:43]} 4. Nxd4 {[%clk 0:02:58]}  Nf6 {[%clk 0:02:43]} 5. Nc3 {[%clk 0:02:58]}  a6 {[%clk 0:02:42]} 6. h3 {[%clk 0:02:59]}  b5 {[%clk 0:02:41]} 7. g4 {[%clk 0:02:51]}  Bb7 {[%clk 0:02:38]} 8. Bg2 {[%clk 0:02:51]}  e5 {[%clk 0:02:17]} 9. Nf5 {[%clk 0:02:47]}  b4 {[%clk 0:02:14]} 10. Nd5 {[%clk 0:02:45]}  Nxd5 {[%clk 0:02:13]} 11. exd5 {[%clk 0:02:45]}  Nd7 {[%clk 0:02:13]} 12. Be3 {[%clk 0:02:39]}  g6 {[%clk 0:01:56]} 13. Ng3 {[%clk 0:02:39]}  Be7 {[%clk 0:01:54]} 14. Qd2 {[%clk 0:02:37]}  a5 {[%clk 0:01:52]} 15. O-O {[%clk 0:02:35]}  O-O {[%clk 0:01:32]} 16. f4 {[%clk 0:02:28]}  exf4 {[%clk 0:01:29]} 17. Bxf4 {[%clk 0:02:29]}  Bf6 {[%clk 0:01:25]} 18. Ne4 {[%clk 0:01:53]}  Bxb2 {[%clk 0:01:21]} 19. Rae1 {[%clk 0:01:53]}  Be5 {[%clk 0:01:21]} 20. Kh1 {[%clk 0:01:46]}  Qe7 {[%clk 0:00:49]} 21. g5 {[%clk 0:01:14]}  Kg7 {[%clk 0:00:36]} 22. Nf6 {[%clk 0:00:45]}  Rad8 {[%clk 0:00:26]} 23. Qf2 {[%clk 0:00:43]}  Kh8 {[%clk 0:00:14]} 24. Qh4 {[%clk 0:00:37]}  h5 {[%clk 0:00:13]} 25. Bf3 {[%clk 0:00:28]}  Nxf6 {[%clk 0:00:11]} 26. gxf6 {[%clk 0:00:27]}  Bxf6 {[%clk 0:00:09]} 27. Rxe7 {[%clk 0:00:27]}  Bxh4 {[%clk 0:00:09]} 28. Rxb7 {[%clk 0:00:28]}  Bf6 {[%clk 0:00:07]} 29. Re1 {[%clk 0:00:26]}  Kg7 {[%clk 0:00:06]} 30. Bg2 {[%clk 0:00:17]}  Bc3 {[%clk 0:00:04]} 31. Re6 {[%clk 0:00:16]}  Rfe8 {[%clk 0:00:02]} 32. Rxe8 {[%clk 0:00:15]}  Rxe8 {[%clk 0:00:03]} 33. Bxd6 {[%clk 0:00:15]}  Re1+ {[%clk 0:00:04]} 34. Kh2 {[%clk 0:00:15]}  Re2 {[%clk 0:00:04]} 35. Bg3 {[%clk 0:00:13]}  g5 {[%clk 0:00:04]} 36. h4 {[%clk 0:00:09]}  gxh4 {[%clk 0:00:04]} 37. Bxh4 {[%clk 0:00:10]}  Re3 {[%clk 0:00:04]} 38. Bg3 {[%clk 0:00:09]}  h4 {[%clk 0:00:03]} 39. Bf4 {[%clk 0:00:08]}  Re2 {[%clk 0:00:04]} 40. d6 {[%clk 0:00:08]}  Rf2 {[%clk 0:00:04]} 41. Be3 {[%clk 0:00:08]}  Be5+ {[%clk 0:00:03]} 42. Kh3 {[%clk 0:00:08]}  Re2 {[%clk 0:00:04]} 43. Bg5 {[%clk 0:00:07]}  Bxd6 {[%clk 0:00:02]} 44. Bd5 {[%clk 0:00:07]}  Rf2 {[%clk 0:00:02]} 45. Bxh4 {[%clk 0:00:07]}  Kg6 {[%clk 0:00:02]} 46. Bxf2 {[%clk 0:00:07]} 1-0


[Site "https://www.chess.com"]

[Event "Titled Tuesday Blitz November 08 Late 2022"]
[White "Oye-Stromberg, Alexander"]
[Black "Kravtsiv, Martyn"]
[WhiteFideId "1525999"]
[BlackFideId "14113147"]
[WhiteElo "2133"]
[BlackElo "2694"]
[Result "0-1"]
[Round "01"]
[TimeControl "180+1"]
[Date "2022.11.09"]
[WhiteClock "0:00:22"]
[BlackClock "0:00:47"]

1. d4 {[%clk 0:02:59]}  d5 {[%clk 0:02:58]} 2. c4 {[%clk 0:02:59]}  e6 {[%clk 0:02:59]} 3. Nf3 {[%clk 0:03:00]}  Nf6 {[%clk 0:02:57]} 4. Nc3 {[%clk 0:02:59]}  Nbd7 {[%clk 0:02:57]} 5. e3 {[%clk 0:02:53]}  Bb4 {[%clk 0:02:53]} 6. Qc2 {[%clk 0:02:52]}  O-O {[%clk 0:02:49]} 7. Bd2 {[%clk 0:02:51]}  b6 {[%clk 0:02:41]} 8. cxd5 {[%clk 0:02:49]}  exd5 {[%clk 0:02:40]} 9. Bd3 {[%clk 0:02:49]}  Bb7 {[%clk 0:02:32]} 10. Ne5 {[%clk 0:02:46]}  g6 {[%clk 0:02:13]} 11. f4 {[%clk 0:02:45]}  c5 {[%clk 0:02:11]} 12. O-O {[%clk 0:02:43]}  c4 {[%clk 0:02:03]} 13. Be2 {[%clk 0:02:38]}  Bxc3 {[%clk 0:02:02]} 14. bxc3 {[%clk 0:02:35]}  Ne4 {[%clk 0:02:02]} 15. Be1 {[%clk 0:02:35]}  f6 {[%clk 0:01:58]} 16. Ng4 {[%clk 0:02:32]}  Qe7 {[%clk 0:01:54]} 17. Bf3 {[%clk 0:02:29]}  Nd6 {[%clk 0:01:51]} 18. Bh4 {[%clk 0:02:06]}  Kg7 {[%clk 0:01:48]} 19. Rae1 {[%clk 0:01:58]}  Nf5 {[%clk 0:01:45]} 20. Bf2 {[%clk 0:01:57]}  Rae8 {[%clk 0:01:38]} 21. h3 {[%clk 0:01:47]}  b5 {[%clk 0:01:28]} 22. Rb1 {[%clk 0:01:45]}  Bc6 {[%clk 0:01:26]} 23. Rfe1 {[%clk 0:01:45]}  Nb6 {[%clk 0:01:25]} 24. Nh2 {[%clk 0:01:21]}  Na4 {[%clk 0:01:24]} 25. Nf1 {[%clk 0:01:06]}  Qa3 {[%clk 0:01:23]} 26. Rbc1 {[%clk 0:01:06]}  Qb2 {[%clk 0:01:15]} 27. Nd2 {[%clk 0:00:37]}  Nd6 {[%clk 0:01:13]} 28. Bg3 {[%clk 0:00:35]}  a5 {[%clk 0:01:08]} 29. Bf2 {[%clk 0:00:31]}  b4 {[%clk 0:00:59]} 30. cxb4 {[%clk 0:00:31]}  axb4 {[%clk 0:00:59]} 31. Qxb2 {[%clk 0:00:25]}  Nxb2 {[%clk 0:00:58]} 32. Rc2 {[%clk 0:00:26]}  Nd3 {[%clk 0:00:56]} 33. Rb1 {[%clk 0:00:25]}  Ba4 {[%clk 0:00:53]} 34. Rcc1 {[%clk 0:00:21]}  Nxc1 {[%clk 0:00:50]} 35. Rxc1 {[%clk 0:00:22]}  c3 {[%clk 0:00:50]} 36. Nb3 {[%clk 0:00:21]}  Bxb3 {[%clk 0:00:49]} 37. axb3 {[%clk 0:00:22]}  Ne4 {[%clk 0:00:49]} 38. Bxe4 {[%clk 0:00:22]}  dxe4 {[%clk 0:00:47]} 0-1


[Site "https://www.chess.com"]

[Event "Titled Tuesday Blitz November 08 Late 2022"]
[White "Ozates, Tuna"]
[Black "Kollars, Dmitrij"]
[WhiteFideId "6354521"]
[BlackFideId "12909572"]
[WhiteElo "2151"]
[BlackElo "2584"]
[Result "0-1"]
[Round "01"]
[TimeControl "180+1"]
[Date "2022.11.08"]
[WhiteClock "0:00:30"]
[BlackClock "0:00:08"]

1. d4 {[%clk 0:03:00]}  Nf6 {[%clk 0:02:56]} 2. Bg5 {[%clk 0:03:00]}  d5 {[%clk 0:02:48]} 3. Bxf6 {[%clk 0:03:00]}  exf6 {[%clk 0:02:47]} 4. e3 {[%clk 0:03:00]}  Bd6 {[%clk 0:02:46]} 5. g3 {[%clk 0:03:01]}  h5 {[%clk 0:02:45]} 6. h4 {[%clk 0:02:58]}  c6 {[%clk 0:02:45]} 7. Bg2 {[%clk 0:02:58]}  Bg4 {[%clk 0:02:45]} 8. Qd2 {[%clk 0:02:55]}  Nd7 {[%clk 0:02:42]} 9. Ne2 {[%clk 0:02:55]}  Qb6 {[%clk 0:02:40]} 10. b3 {[%clk 0:02:54]}  a5 {[%clk 0:02:39]} 11. a4 {[%clk 0:02:54]}  O-O {[%clk 0:02:34]} 12. O-O {[%clk 0:02:52]}  Rfe8 {[%clk 0:02:33]} 13. Nbc3 {[%clk 0:02:50]}  Bb4 {[%clk 0:02:33]} 14. Rfe1 {[%clk 0:02:49]}  Bxe2 {[%clk 0:02:12]} 15. Rxe2 {[%clk 0:02:46]}  f5 {[%clk 0:02:13]} 16. Qd3 {[%clk 0:02:45]}  g6 {[%clk 0:02:09]} 17. Na2 {[%clk 0:02:35]}  Nf6 {[%clk 0:02:09]} 18. Nxb4 {[%clk 0:02:34]}  axb4 {[%clk 0:02:10]} 19. f3 {[%clk 0:02:26]}  Re7 {[%clk 0:02:08]} 20. Kh2 {[%clk 0:02:26]}  Kg7 {[%clk 0:02:08]} 21. Rae1 {[%clk 0:02:26]}  Rae8 {[%clk 0:02:07]} 22. c4 {[%clk 0:02:18]}  bxc3 {[%clk 0:02:05]} 23. Qxc3 {[%clk 0:02:18]}  Qc7 {[%clk 0:01:53]} 24. b4 {[%clk 0:02:12]}  Qd6 {[%clk 0:01:47]} 25. Qc5 {[%clk 0:02:10]}  Qc7 {[%clk 0:01:17]} 26. b5 {[%clk 0:02:07]}  Nd7 {[%clk 0:01:17]} 27. Qb4 {[%clk 0:02:02]}  Nb6 {[%clk 0:01:16]} 28. bxc6 {[%clk 0:01:54]}  bxc6 {[%clk 0:01:16]} 29. e4 {[%clk 0:01:47]}  f4 {[%clk 0:01:07]} 30. e5 {[%clk 0:01:45]}  fxg3+ {[%clk 0:01:06]} 31. Kxg3 {[%clk 0:01:45]}  Ra8 {[%clk 0:00:58]} 32. Ra2 {[%clk 0:01:33]}  Nc4 {[%clk 0:00:57]} 33. f4 {[%clk 0:01:31]}  Ree8 {[%clk 0:00:55]} 34. f5 {[%clk 0:01:27]}  f6 {[%clk 0:00:52]} 35. Kf4 {[%clk 0:00:47]}  fxe5+ {[%clk 0:00:49]} 36. dxe5 {[%clk 0:00:47]}  Rxe5 {[%clk 0:00:26]} 37. Qc3 {[%clk 0:00:44]}  Rf8 {[%clk 0:00:09]} 38. Rae2 {[%clk 0:00:45]}  Rxf5+ {[%clk 0:00:09]} 39. Kg3 {[%clk 0:00:37]}  Kh7 {[%clk 0:00:09]} 40. Kh3 {[%clk 0:00:33]}  Rxe2 {[%clk 0:00:08]} 41. Rxe2 {[%clk 0:00:33]}  Ne5 {[%clk 0:00:09]} 42. Bxd5 {[%clk 0:00:30]}  Qd7 {[%clk 0:00:08]} 0-1


[Site "https://www.chess.com"]